fUST/lending_fUST_20251004
["ID","MTS","AMOUNT","RATE_DAILY","PERIOD"]
[388954739,1759539522853,729.958055,0.00028767,120]
[388954742,1759540083652,207.04,0.00015984,2]
[388954743,1759540083925,207.04,0.00015984,2]
[388954790,1759540232369,-500.0,0.00026424,7]
[388954792,1759540232378,-619.63431573,0.00026641,2]
[388954795,1759540232392,-466.53666222,0.00026641,2]
[388954799,1759540232428,-211.00392424,0.00026641,2]
[388954801,1759540232437,-701.63626863,0.00026889,2]
[388954804,1759540232446,-1297.1749022,0.00026925,2]
[388954807,1759540232456,-300.0,0.00026985,2]
[388954810,1759540232465,-1200.0,0.00026985,2]
[388954813,1759540232474,-360.05808585,0.00026986,2]
[388954816,1759540232483,-500.0,0.00026986,2]
[388954819,1759540232492,-500.0,0.00026986,2]
[388954821,1759540232501,-500.0,0.00026986,2]
[388954824,1759540232510,-500.0,0.00026986,2]
[388954826,1759540232519,-500.0,0.00026986,2]
[388954828,1759540232528,-500.0,0.00026986,2]
[388954830,1759540232537,-500.0,0.00026986,2]
[388954832,1759540232546,-500.0,0.00026986,2]
[388954835,1759540232555,-227.81150295,0.00026986,2]
[388954838,1759540232564,-500.0,0.00026986,2]
[388954841,1759540232572,-97.9355346,0.00026986,2]
[388954876,1759540238188,-402.0644654,0.00026986,2]
[388954877,1759540238198,-500.0,0.00026986,2]
[388954878,1759540238207,-500.0,0.00026986,2]
[388954879,1759540238217,-500.0,0.00026986,2]
[388954880,1759540238226,-500.0,0.00026986,2]
[388954881,1759540238236,-500.0,0.00026986,2]
[388954882,1759540238245,-500.0,0.00026986,2]
[388954883,1759540238254,-500.0,0.00026986,2]
[388954884,1759540238263,-500.0,0.00026986,2]
[388954885,1759540238274,-500.0,0.00026986,2]
[388954886,1759540238285,-500.0,0.00026986,2]
[388954887,1759540238295,-500.0,0.00026986,2]
[388954888,1759540238304,-500.0,0.00026986,2]
[388954889,1759540238314,-500.0,0.00026986,2]
[388954890,1759540238323,-500.0,0.00026986,2]
[388954891,1759540238332,-500.0,0.00026986,2]
[388954892,1759540238341,-500.0,0.00026986,2]
[388954893,1759540238352,-446.0897056,0.00026986,2]
[388954894,1759540238363,-53.9102944,0.00026986,2]
[388954895,1759540238372,-500.0,0.00026986,2]
[388954896,1759540238381,-500.0,0.00026986,2]
[388954897,1759540238391,-500.0,0.00026986,2]
[388954898,1759540238399,-500.0,0.00026986,2]
[388954899,1759540238409,-500.0,0.00026986,2]
[388954900,1759540238418,-500.0,0.00026986,2]
[388954901,1759540238427,-500.0,0.00026986,2]
[388954902,1759540238436,-500.0,0.00026986,2]
[388954903,1759540238446,-500.0,0.00026986,2]
[388954904,1759540238455,-500.0,0.00026986,2]
[388954905,1759540238464,-500.0,0.00026986,2]
[388954906,1759540238473,-500.0,0.00026986,2]
[388954907,1759540238482,-500.0,0.00026986,2]
[388954908,1759540238492,-200.0,0.00026986,2]
[388954909,1759540238501,-500.0,0.00026986,2]
[388954910,1759540238510,-500.0,0.00026986,2]
[388954911,1759540238519,-500.0,0.00026986,2]
[388954912,1759540238529,-500.0,0.00026986,2]
[388954913,1759540238538,-13154.41961611,0.00026987,2]
[388954914,1759540238547,-246.56124359,0.00026989,2]
[388954915,1759540238556,-23788.99825082,0.0002699,2]
[388954916,1759540238568,-19263.31187131,0.0002699,2]
[388954917,1759540238582,-1205.24441864,0.0002699,2]
[388954918,1759540238593,-1116.45259264,0.0002699,2]
[388954919,1759540238604,-278.31470361,0.0002699,2]
[388954940,1759540243541,-2613.63021915,0.0002699,2]
[388954941,1759540243553,-800.05801478,0.0002699,2]
[388954942,1759540243562,-1418.12934068,0.00027178,2]
[388954947,1759540246381,-1346.00468372,0.00027178,2]
[388954948,1759540246390,-1041.66666667,0.00027192,2]
[388954949,1759540246401,-160.0,0.00027192,2]
[388954950,1759540246410,-293.47,0.00027207,2]
[388954951,1759540246419,-168.18,0.00027207,2]
[388954952,1759540246429,-168.18,0.00027207,2]
[388954953,1759540246438,-168.18,0.00027207,2]
[388954954,1759540246449,-168.16,0.00027207,2]
[388954955,1759540246459,-160.0,0.00027222,2]
[388954956,1759540246472,-345.79765334,0.00027273,2]
[388954957,1759540246481,-303.27,0.00027277,10]
[388954958,1759540246491,-345.79765334,0.00027279,2]
[388954959,1759540246500,-345.79765334,0.00027285,2]
[388954960,1759540246509,-7194.49568959,0.00027287,2]
[388955053,1759541438489,-179.76306993,0.00023628,2]
[388955054,1759541438500,-2613.04299733,0.00023867,2]
[388955055,1759541438510,-20.23693007,0.00023966,2]
[388955112,1759541446574,-1179.76306993,0.00023966,2]
[388955113,1759541446584,-2149.63530025,0.00023967,2]
[388955114,1759541446593,-4831.84274614,0.00023967,2]
[388955115,1759541446603,-300.0,0.00024445,20]
[388955116,1759541446612,-300.0,0.00024445,20]
[388955117,1759541446622,-300.0,0.00024445,20]
[388955118,1759541446631,-300.0,0.00024445,20]
[388955119,1759541446640,-300.0,0.00024445,20]
[388955120,1759541446649,-300.0,0.00024445,20]
[388955121,1759541446658,-300.0,0.00024445,20]
[388955122,1759541446667,-300.0,0.00024445,20]
[388955123,1759541446676,-300.0,0.00024445,20]
[388955124,1759541446685,-300.0,0.00024445,20]
[388955125,1759541446695,-300.0,0.00024445,20]
[388955126,1759541446705,-300.0,0.00024445,20]
[388955127,1759541446714,-300.0,0.00024445,20]
[388955128,1759541446723,-138.75888368,0.00024445,20]
[388955130,1759541478436,211.359328,0.00016438,2]
[388955131,1759541499650,478.35,0.0002876,120]
[388955133,1759541734361,4892.0,0.000287,120]
[388955140,1759542327219,16000.0,0.0002876,120]
[388955142,1759542614394,301.1066228,0.00023288,30]
[388955174,1759542631698,-300.0,0.00020548,2]
[388955176,1759542631708,-691.0,0.00020548,2]
[388955178,1759542631717,-3487.37788319,0.00020549,2]
[388955180,1759542631726,-6193.58312054,0.00020549,2]
[388955182,1759542631738,-50000.0,0.00020959,2]
[388955184,1759542631747,-300.0,0.00020959,2]
[388955186,1759542631756,-300.0,0.00020959,2]
[388955188,1759542631765,-300.0,0.00020959,2]
[388955190,1759542631774,-300.0,0.00020959,2]
[388955192,1759542631784,-300.0,0.00020959,2]
[388955194,1759542631794,-300.0,0.00020959,2]
[388955196,1759542631803,-300.0,0.00020959,2]
[388955198,1759542631812,-300.0,0.00020959,2]
[388955200,1759542631822,-300.0,0.00020959,2]
[388955202,1759542631831,-300.0,0.00020959,2]
[388955204,1759542631840,-300.0,0.00020959,2]
[388955206,1759542631849,-300.0,0.00020959,2]
[388955208,1759542631858,-300.0,0.00020959,2]
[388955210,1759542631867,-300.0,0.00020959,2]
[388955212,1759542631876,-300.0,0.00020959,2]
[388955214,1759542631885,-600.0,0.00021377,20]
[388955216,1759542631895,-500.0,0.00021629,2]
[388955218,1759542631904,-501.62397779,0.000217,2]
[388955220,1759542631913,-615.20414014,0.00021959,2]
[388955222,1759542631923,-264.66,0.0002205,10]
[388955225,1759542631932,-220.55,0.0002205,10]
[388955228,1759542631941,-500.0,0.00022059,2]
[388955230,1759542631951,-500.0,0.00022059,2]
[388955233,1759542631960,-500.0,0.00022059,2]
[388955236,1759542631969,-500.0,0.00022059,2]
[388955238,1759542631979,-500.0,0.00022059,2]
[388955241,1759542631990,-374.08391859,0.00022059,2]
[388955244,1759542632000,-500.0,0.00022059,2]
[388955247,1759542632010,-500.0,0.00022059,2]
[388955250,1759542632019,-500.0,0.00022059,2]
[388955253,1759542632029,-500.0,0.00022059,2]
[388955255,1759542632038,-500.0,0.00022059,2]
[388955258,1759542632047,-487.84142192,0.00022059,2]
[388955260,1759542632057,-500.0,0.00022059,2]
[388955262,1759542632066,-500.0,0.00022059,2]
[388955264,1759542632075,-500.0,0.00022059,2]
[388955265,1759542632085,-500.0,0.00022059,2]
[388955266,1759542632095,-500.0,0.00022059,2]
[388955267,1759542632104,-500.0,0.00022059,2]
[388955268,1759542632113,-500.0,0.00022059,2]
[388955269,1759542632123,-500.0,0.00022059,2]
[388955270,1759542632133,-500.0,0.00022059,2]
[388955271,1759542632143,-500.0,0.00022059,2]
[388955272,1759542632152,-500.0,0.00022059,2]
[388955273,1759542632161,-500.0,0.00022059,2]
[388955288,1759542632355,-500.0,0.00022059,2]
[388955290,1759542632365,-500.0,0.00022059,2]
[388955292,1759542632374,-500.0,0.00022059,2]
[388955294,1759542632384,-500.0,0.00022059,2]
[388955296,1759542632393,-500.0,0.00022059,2]
[388955298,1759542632403,-500.0,0.00022059,2]
[388955300,1759542632412,-500.0,0.00022059,2]
[388955302,1759542632421,-500.0,0.00022059,2]
[388955304,1759542632431,-500.0,0.00022059,2]
[388955306,1759542632446,-474.21856574,0.00022059,2]
[388955308,1759542632455,-500.0,0.00022059,2]
[388955310,1759542632464,-500.0,0.00022059,2]
[388955312,1759542632474,-500.0,0.00022059,2]
[388955314,1759542632483,-500.0,0.00022059,2]
[388955316,1759542632494,-500.0,0.00022059,2]
[388955318,1759542632503,-500.0,0.00022059,2]
[388955320,1759542632514,-500.0,0.00022059,2]
[388955321,1759542632523,-500.0,0.00022059,2]
[388955323,1759542632532,-500.0,0.00022059,2]
[388955325,1759542632543,-500.0,0.00022059,2]
[388955328,1759542632554,-500.0,0.00022059,2]
[388955330,1759542632563,-500.0,0.00022059,2]
[388955332,1759542632572,-500.0,0.00022059,2]
[388955334,1759542632581,-500.0,0.00022059,2]
[388955336,1759542632590,-500.0,0.00022059,2]
[388955338,1759542632599,-500.0,0.00022059,2]
[388955340,1759542632609,-500.0,0.00022059,2]
[388955342,1759542632618,-161.70679,0.00022059,7]
[388955344,1759542632627,-151.0,0.00022059,7]
[388955346,1759542632636,-194.870356,0.00022059,7]
[388955348,1759542632645,-151.0,0.0002206,7]
[388955350,1759542632654,-151.0,0.0002206,7]
[388955352,1759542632663,-151.0,0.0002206,7]
[388955353,1759542632672,-151.19247058,0.0002206,2]
[388955355,1759542632681,-151.0,0.0002206,7]
[388955357,1759542632692,-151.0,0.0002206,7]
[388955359,1759542632701,-151.0,0.0002206,7]
[388955361,1759542632711,-129.90937178,0.0002206,7]
[388955376,1759542637645,-174.209758,0.00022058,2]
[388955377,1759542637654,-151.975371,0.00022059,7]
[388955378,1759542637663,-151.975371,0.00022059,7]
[388955380,1759542637672,-151.975371,0.00022059,7]
[388955381,1759542637681,-151.975371,0.00022059,7]
[388955383,1759542637690,-151.975371,0.00022059,7]
[388955384,1759542637699,-151.975371,0.00022059,7]
[388955385,1759542637709,-151.975371,0.00022059,7]
[388955386,1759542637718,-151.975371,0.00022059,7]
[388955388,1759542637727,-151.975371,0.00022059,7]
[388955390,1759542637736,-151.975371,0.00022059,7]
[388955391,1759542637745,-151.975371,0.00022059,7]
[388955392,1759542637757,-151.975371,0.00022059,7]
[388955393,1759542637766,-151.0,0.0002206,7]
[388955394,1759542637776,-157.601757,0.0002206,7]
[388955395,1759542637786,-169.808104,0.0002206,7]
[388955396,1759542637795,-154.821517,0.0002206,7]
[388955397,1759542637804,-219.792763,0.0002206,7]
[388955398,1759542637813,-219.792763,0.0002206,7]
[388955399,1759542637822,-219.792763,0.0002206,7]
[388955400,1759542637832,-219.792763,0.0002206,7]
[388955401,1759542637840,-219.792763,0.0002206,7]
[388955402,1759542637850,-219.792763,0.0002206,7]
[388955403,1759542637859,-219.792763,0.0002206,7]
[388955404,1759542637868,-219.792763,0.0002206,7]
[388955405,1759542637877,-219.792763,0.0002206,7]
[388955406,1759542637886,-219.792763,0.0002206,7]
[388955407,1759542637895,-219.792763,0.0002206,7]
[388955408,1759542637905,-151.0,0.0002206,7]
[388955409,1759542637914,-219.792763,0.0002206,7]
[388955410,1759542637924,-155.926815,0.0002206,7]
[388955411,1759542637933,-219.792763,0.0002206,7]
[388955412,1759542637942,-219.792763,0.0002206,7]
[388955413,1759542637951,-219.792763,0.0002206,7]
[388955414,1759542637960,-219.792763,0.0002206,7]
[388955415,1759542637969,-151.0,0.0002206,7]
[388955416,1759542637978,-151.0,0.0002206,7]
[388955417,1759542637987,-151.0,0.0002206,7]
[388955418,1759542637998,-196.979139,0.0002206,7]
[388955419,1759542638007,-151.975371,0.0002206,7]
[388955420,1759542638016,-151.975371,0.0002206,7]
[388955421,1759542638026,-151.975371,0.0002206,7]
[388955422,1759542638036,-151.975371,0.0002206,7]
[388955423,1759542638046,-151.975371,0.0002206,7]
[388955424,1759542638055,-151.975371,0.0002206,7]
[388955425,1759542638064,-500.0,0.00022061,2]
[388955426,1759542638074,-167.400275,0.00022061,7]
[388955427,1759542638084,-151.0,0.00022061,7]
[388955428,1759542638094,-157.633226,0.00022061,7]
[388955429,1759542638104,-160.958306,0.00022061,7]
[388955430,1759542638114,-151.0,0.00022061,7]
[388955431,1759542638124,-222.49085,0.00022061,7]
[388955432,1759542638133,-219.792763,0.00022061,7]
[388955433,1759542638143,-219.792763,0.00022061,7]
[388955434,1759542638152,-219.792763,0.00022061,7]
[388955435,1759542638163,-219.792762,0.00022061,7]
[388955436,1759542638173,-237.512478,0.00022062,7]
[388955437,1759542638182,-500.0,0.00022062,2]
[388955438,1759542638192,-646.0,0.00022062,2]
[388955439,1759542638202,-151.0,0.00022062,2]
[388955440,1759542638213,-151.0,0.00022062,2]
[388955441,1759542638222,-151.0,0.00022062,2]
[388955442,1759542638231,-151.41318029,0.00022062,2]
[388955443,1759542638241,-500.0,0.00022062,2]
[388955444,1759542638251,-151.0,0.00022062,2]
[388955445,1759542638260,-151.0,0.00022062,2]
[388955446,1759542638270,-500.20600994,0.000221,2]
[388955447,1759542638279,-500.40273631,0.000221,2]
[388955448,1759542638289,-500.97846341,0.000221,2]
[388955449,1759542638298,-502.4107183,0.000221,2]
[388955450,1759542638308,-501.04512143,0.000221,2]
[388955451,1759542638317,-500.0,0.000221,2]
[388955452,1759542638327,-505.92220362,0.000221,2]
[388955453,1759542638337,-502.92401632,0.000221,2]
[388955454,1759542638346,-500.0,0.000221,2]
[388955455,1759542638356,-712.3608819,0.00022129,2]
[388955456,1759542638366,-500.0,0.00022335,2]
[388955457,1759542638375,-646.0,0.00022336,2]
[388955458,1759542638385,-151.0,0.00022336,2]
[388955459,1759542638394,-151.0,0.00022336,2]
[388955460,1759542638403,-558.55445283,0.00022336,2]
[388955461,1759542638413,-151.0,0.00022336,2]
[388955462,1759542638422,-151.0,0.00022336,2]
[388955463,1759542638435,-420.0,0.00022362,2]
[388955464,1759542638444,-517.3154207,0.00022609,2]
[388955465,1759542638454,-646.0,0.0002261,2]
[388955466,1759542638464,-151.0,0.0002261,2]
[388955467,1759542638473,-199.80544449,0.0002261,2]
[388955468,1759542638483,-151.0,0.0002261,2]
[388955469,1759542638492,-151.0,0.0002261,2]
[388955470,1759542638503,-502.62488039,0.00022648,2]
[388955471,1759542638515,-1000.0,0.00022648,2]
[388955472,1759542638525,-211.359328,0.00022783,2]
[388955473,1759542638536,-500.0,0.000228,2]
[388955474,1759542638545,-500.50834173,0.000228,2]
[388955475,1759542638555,-500.0,0.000228,2]
[388955476,1759542638564,-500.0,0.000228,2]
[388955477,1759542638573,-500.0,0.000228,2]
[388955478,1759542638583,-646.0,0.00022884,2]
[388955479,1759542638592,-151.0,0.00022884,2]
[388955480,1759542638602,-151.0,0.00022884,2]
[388955481,1759542638612,-152.67814377,0.00022884,2]
[388955482,1759542638621,-160.0,0.00023,2]
[388955483,1759542638631,-646.0,0.00023158,2]
[388955484,1759542638640,-279.74040553,0.00023158,2]
[388955485,1759542638650,-153.86875017,0.00023158,2]
[388955486,1759542638659,-1236.23942757,0.00023196,2]
[388955487,1759542638669,-151.0,0.00023222,2]
[388955488,1759542638678,-161.39665758,0.00023222,2]
[388955489,1759542638687,-151.0,0.00023222,2]
[388955490,1759542638696,-151.0,0.00023222,2]
[388955491,1759542638706,-151.0,0.00023222,2]
[388955492,1759542638715,-151.0,0.00023222,2]
[388955493,1759542638725,-151.7547861,0.00023222,2]
[388955494,1759542638735,-151.85901862,0.00023222,2]
[388955495,1759542638745,-151.0,0.00023222,2]
[388955496,1759542638755,-500.0,0.000233,2]
[388955497,1759542638764,-500.0,0.000233,2]
[388955498,1759542638774,-1197.4,0.000233,2]
[388955499,1759542638784,-500.75190857,0.000233,2]
[388955500,1759542638793,-500.69760675,0.000233,2]
[388955501,1759542638803,-1001.2192186,0.00023348,2]
[388955502,1759542638813,-797.79736172,0.00023348,2]
[388955503,1759542638822,-1000.0,0.00023348,2]
[388955504,1759542638831,-1000.0,0.00023348,2]
[388955505,1759542638841,-502.94857651,0.00023432,2]
[388955506,1759542638850,-646.0,0.00023432,2]
[388955507,1759542638860,-198.72965741,0.00023496,2]
[388955508,1759542638869,-151.0,0.00023496,2]
[388955509,1759542638879,-151.0,0.00023496,2]
[388955510,1759542638888,-151.68042435,0.00023496,2]
[388955511,1759542638897,-151.0,0.00023496,2]
[388955512,1759542638907,-246.50473744,0.00023496,2]
[388955513,1759542638917,-720.0,0.00023515,20]
[388955514,1759542638927,-615.20414008,0.00023522,2]
[388955515,1759542638938,-180.16599001,0.0002358,2]
[388955516,1759542638950,-646.0,0.00023706,2]
[388955517,1759542638961,-250.94445747,0.0002377,2]
[388955518,1759542638971,-151.0,0.0002377,2]
[388955519,1759542638980,-151.0,0.0002377,2]
[388955520,1759542638991,-500.98610482,0.00023848,2]
[388955521,1759542639001,-997.16620083,0.00023848,2]
[388955522,1759542639011,-1500.0,0.00023896,2]
[388955523,1759542639021,-646.0,0.0002398,2]
[388955524,1759542639031,-1041.66666667,0.00024,7]
[388955525,1759542639041,-247.71193145,0.00024044,2]
[388955526,1759542639051,-264.12837541,0.00024044,2]
[388955527,1759542639060,-646.0,0.00024254,2]
[388955528,1759542639069,-587.0,0.00024336,2]
[388955529,1759542639078,-1461.87611936,0.00024444,2]
[388955530,1759542639088,-151.0,0.00024444,2]
[388955531,1759542639098,-500.47985645,0.000245,2]
[388955532,1759542639108,-500.0,0.000245,2]
[388955533,1759542639118,-500.0,0.000245,2]
[388955534,1759542639128,-646.0,0.00024528,2]
[388955535,1759542639137,-160.0,0.00024557,2]
[388955536,1759542639147,-293.47406221,0.0002456,2]
[388955537,1759542639156,-1787.12,0.00024657,2]
[388955538,1759542639166,-232.09970953,0.00024658,2]
[388955539,1759542639176,-500.0,0.00024658,2]
[388955540,1759542639185,-454.87517989,0.00024704,2]
[388955541,1759542639195,-151.0,0.00024718,2]
[388955542,1759542639205,-646.0,0.00024802,2]
[388955543,1759542639214,-183.79,0.0002489,10]
[388955545,1759542639224,-70518.8989423,0.000249,2]
[388955547,1759542639234,-160.0,0.000249,2]
[388955548,1759542639243,-500.0,0.00024932,2]
[388955549,1759542639253,-20670.74447168,0.00024976,2]
[388955550,1759542639263,-199.86276076,0.00024992,2]
[388955551,1759542639272,-1000.0,0.00025048,2]
[388955552,1759542639282,-518.34891665,0.00025048,2]
[388955553,1759542639293,-646.0,0.00025076,2]
[388955554,1759542639302,-615.20414008,0.00025085,2]
[388955555,1759542639311,-181.66841354,0.00025166,2]
[388955556,1759542639320,-500.0,0.00025206,2]
[388955557,1759542639330,-646.0,0.0002535,2]
[388955558,1759542639339,-260.0,0.00025448,2]
[388955559,1759542639348,-500.0,0.0002548,2]
[388955560,1759542639357,-501.62081677,0.00025596,2]
[388955561,1759542639367,-1197.4,0.000256,2]
[388955563,1759542639376,-646.0,0.00025624,2]
[388955564,1759542639385,-500.0,0.00025754,2]
[388955565,1759542639394,-864.0,0.00025866,20]
[388955566,1759542639403,-181.66841351,0.00025876,2]
[388955567,1759542639413,-646.0,0.00025898,2]
[388955568,1759542639422,-360.0,0.00025996,2]
[388955569,1759542639432,-178.89888114,0.00026004,2]
[388955570,1759542639445,-714.87992903,0.00026004,2]
[388955571,1759542639454,-500.0,0.00026028,2]
[388955572,1759542639463,-646.0,0.00026172,2]
[388955573,1759542639472,-500.0,0.00026302,2]
[388955574,1759542639482,-646.0,0.00026446,2]
[388955575,1759542639491,-448.0,0.00026484,2]
[388955576,1759542639501,-605.40924403,0.00026544,2]
[388955577,1759542639510,-363.64157253,0.00026576,2]
[388955578,1759542639519,-181.66841351,0.00026587,2]
[388955579,1759542639528,-151.0,0.000266,17]
[388955580,1759542639538,-615.20414008,0.00026648,2]
[388955581,1759542639547,-646.0,0.0002672,2]
[388955582,1759542639557,-1000.0,0.00026849,9]
[388955583,1759542639566,-933.2716186,0.00026849,9]
[388955584,1759542639575,-1787.12,0.00026849,4]
[388955586,1759542639584,-151.0,0.00026898,2]
[388955588,1759542639593,-151.42574894,0.00026898,2]
[388955590,1759542639602,-151.0,0.00026898,2]
[388955591,1759542639611,-152.00754179,0.00026898,2]
[388955592,1759542639621,-151.0,0.00026898,2]
[388955593,1759542639630,-152.06238872,0.00026899,2]
[388955595,1759542639639,-166.47340684,0.000269,10]
[388955596,1759542639649,-901.95892867,0.000269,2]
[388955597,1759542639658,-505.21047232,0.00026976,2]
[388955598,1759542639668,-250.0,0.00026976,2]
[388955599,1759542639677,-250.0,0.00026976,2]
[388955600,1759542639686,-155.786338,0.00026976,2]
[388955601,1759542639696,-250.0,0.00026976,2]
[388955602,1759542639706,-260.07757208,0.00026976,2]
[388955603,1759542639715,-325.92399859,0.00026976,2]
[388955604,1759542639724,-275.24532193,0.00026976,2]
[388955605,1759542639733,-545.19450403,0.00026976,2]
[388955606,1759542639742,-166.0,0.00026976,2]
[388955607,1759542639753,-35259.4494712,0.0002698,2]
[388955608,1759542639762,-512.36,0.0002698,5]
[388955610,1759542639771,-35259.4494712,0.0002699,2]
[388955611,1759542639781,-43292.2486038,0.0002699,2]
[388955612,1759542639791,-646.0,0.00026994,2]
[388955613,1759542639800,-10998.57477,0.00027,3]
[388955615,1759542639810,-160.0,0.00027,3]
[388955616,1759542639819,-293.47406221,0.00027,3]
[388955617,1759542639828,-151.0,0.00027,18]
[388955618,1759542639838,-1041.66666667,0.00027061,2]
[388955619,1759542639847,-160.0,0.00027133,2]
[388955620,1759542639856,-160.0,0.00027133,2]
[388955621,1759542639986,-234.04758945,0.00027133,2]
[388955622,1759542639997,-151.0,0.00027172,2]
[388955623,1759542640006,-151.0,0.00027172,2]
[388955624,1759542640015,-257.89691276,0.00027172,2]
[388955625,1759542640025,-646.0,0.00027267,2]
[388955626,1759542640035,-653.32,0.00027297,2]
[388955627,1759542640044,-181.66841351,0.00027297,2]
[388955628,1759542640053,-176.49584853,0.00027297,2]
[388955629,1759542640063,-166.0,0.000273,30]
[388955630,1759542640072,-166.0,0.000273,15]
[388955631,1759542640082,-189.573,0.00027312,16]
[388955632,1759542640092,-901.95892866,0.00027373,2]
[388955633,1759542640103,-500.0,0.00027373,2]
[388955634,1759542640112,-421.39693963,0.00027373,2]
[388955635,1759542640121,-501.52920836,0.00027373,2]
[388955636,1759542640132,-277.26491631,0.00027373,2]
[388955637,1759542640142,-500.0,0.00027373,2]
[388955638,1759542640153,-500.36229035,0.00027373,2]
[388955639,1759542640162,-500.0,0.00027373,2]
[388955640,1759542640171,-501.31038916,0.00027373,2]
[388955641,1759542640181,-500.0,0.00027373,2]
[388955642,1759542640190,-500.94553527,0.00027373,2]
[388955643,1759542640199,-500.0,0.00027373,2]
[388955644,1759542640208,-500.0,0.00027373,2]
[388955645,1759542640218,-500.0,0.00027373,2]
[388955646,1759542640227,-500.0,0.00027373,2]
[388955647,1759542640236,-301.94381484,0.00027373,2]
[388955648,1759542640245,-150.49359446,0.00027373,2]
[388955649,1759542640254,-291.18932426,0.00027373,2]
[388955650,1759542640263,-501.49259705,0.00027373,2]
[388955651,1759542640272,-500.0,0.00027373,2]
[388955652,1759542640281,-518.6804442,0.00027373,2]
[388955653,1759542640292,-500.0,0.00027373,2]
[388955654,1759542640301,-500.0,0.00027373,2]
[388955655,1759542640311,-561.8854793,0.00027373,2]
[388955656,1759542640321,-502.23076823,0.00027373,2]
[388955657,1759542640332,-500.51667312,0.00027373,2]
[388955658,1759542640341,-500.0,0.00027373,2]
[388955659,1759542640350,-500.0,0.00027373,2]
[388955660,1759542640358,-502.11107488,0.00027373,2]
[388955661,1759542640368,-507.66409169,0.00027373,2]
[388955662,1759542640376,-502.65122307,0.00027373,2]
[388955663,1759542640385,-500.0,0.00027373,2]
[388955664,1759542640394,-500.0,0.00027373,2]
[388955665,1759542640403,-500.0,0.00027373,2]
[388955666,1759542640413,-500.0,0.00027373,2]
[388955667,1759542640424,-500.0,0.00027373,2]
[388955668,1759542640437,-500.0,0.00027373,2]
[388955669,1759542640446,-438.05561126,0.00027373,2]
[388955670,1759542640455,-271.90358409,0.00027373,2]
[388955671,1759542640466,-500.0,0.00027373,2]
[388955672,1759542640478,-439.31948196,0.00027373,2]
[388955673,1759542640490,-1757.27792782,0.00027373,2]
[388955674,1759542640501,-3949.92146226,0.00027373,2]
[388955675,1759542640510,-230.7198,0.00027386,30]
[388955676,1759542640521,-230.7198,0.00027386,60]
[388955677,1759542640531,-501.97557399,0.00027386,2]
[388955678,1759542640542,-323.94,0.00027387,5]
[388955679,1759542640551,-323.94,0.00027387,5]
[388955680,1759542640562,-141037.797885,0.00027387,2]
[388955681,1759542640571,-10000.0,0.00027394,6]
[388955682,1759542640580,-155.42,0.00027396,2]
[388955683,1759542640589,-176.07,0.00027397,5]
[388955684,1759542640598,-152.004238,0.00027397,7]
[388955685,1759542640607,-151.0,0.00027397,7]
[388955686,1759542640617,-151.0,0.00027397,7]
[388955687,1759542640626,-151.0,0.00027397,7]
[388955688,1759542640635,-185.584951,0.00027397,7]
[388955689,1759542640645,-151.0,0.00027397,7]
[388955690,1759542640654,-151.0,0.00027397,7]
[388955691,1759542640664,-151.0,0.00027397,7]